fUSD/lending_fUSD_20240820
["ID","MTS","AMOUNT","RATE_DAILY","PERIOD"]
[335333504,1724119838772,-150.0,0.00010749,2]
[335333505,1724119838780,-150.0,0.0001075,2]
[335333506,1724119838790,-150.0,0.00010751,2]
[335333507,1724119838799,-25.15065819,0.00010752,2]
[335333508,1724119838810,-124.84934181,0.00010752,2]
[335333509,1724119838819,-150.0,0.00010755,2]
[335333510,1724119838828,-150.0,0.00010756,2]
[335333511,1724119838837,-150.0,0.00010759,2]
[335333512,1724119838847,-150.0,0.00010759,2]
[335333513,1724119838856,-150.0,0.0001076,2]
[335333514,1724119838866,-150.0,0.00010763,2]
[335333515,1724119838875,-150.0,0.00010763,2]
[335333516,1724119838884,-150.0,0.00010769,2]
[335333517,1724119838893,-150.0,0.0001077,2]
[335333518,1724119838902,-150.0,0.00010773,2]
[335333519,1724119838910,-150.0,0.00010774,2]
[335333520,1724119838919,-150.0,0.00010775,2]
[335333521,1724119838928,-150.0,0.00010782,2]
[335333522,1724119838937,-150.0,0.00010783,2]
[335333523,1724119838946,-150.0,0.00010789,2]
[335333524,1724119838959,-150.0,0.00010795,2]
[335333525,1724119838968,-150.0,0.00010799,2]
[335333526,1724119838977,-150.0,0.00010803,2]
[335333527,1724119838986,-150.0,0.00010806,2]
[335333528,1724119838995,-150.0,0.00010807,2]
[335333529,1724119839004,-150.0,0.00010811,2]
[335333530,1724119839013,-150.0,0.00010815,2]
[335333531,1724119839022,-150.0,0.00010821,2]
[335333532,1724119839033,-150.0,0.00010829,2]
[335333533,1724119839042,-150.0,0.0001083,2]
[335333534,1724119839051,-150.0,0.00010831,2]
[335333535,1724119839060,-150.0,0.00010831,2]
[335333536,1724119839069,-61.87555914,0.00010832,2]
[335333537,1724119839118,-150.0,0.00010574,2]
[335333538,1724119839127,-150.0,0.00010581,2]
[335333539,1724119839136,-150.0,0.00010725,2]
[335333540,1724119839145,-150.0,0.0001077,2]
[335333541,1724119839155,-112.43225591,0.00010815,2]
[335333545,1724119840092,-150.0,0.00010563,2]
[335333546,1724119840102,-150.0,0.00010574,2]
[335333547,1724119840111,-150.0,0.00010578,2]
[335333548,1724119840121,-45.94399432,0.00010584,2]
[335333549,1724119840132,-104.05600568,0.00010584,2]
[335333550,1724119840141,-150.0,0.00010585,2]
[335333551,1724119840150,-150.0,0.0001059,2]
[335333552,1724119840160,-58.64699452,0.00010603,2]
[335333553,1724119840433,-150.0,0.00010573,2]
[335333555,1724119840442,-150.0,0.00010599,2]
[335333557,1724119840451,-74.07477111,0.00010602,2]
[335333560,1724119840464,-75.92522889,0.00010602,2]
[335333562,1724119840474,-91.35300548,0.00010603,2]
[335333564,1724119840483,-136.52237444,0.00010607,2]
[335333566,1724119840495,-13.47762556,0.00010607,2]
[335333568,1724119840504,-150.0,0.00010608,2]
[335333570,1724119840514,-150.0,0.00010613,2]
[335333572,1724119840522,-150.0,0.00010615,2]
[335333574,1724119840532,-150.0,0.00010616,2]
[335333576,1724119840541,-150.0,0.00010616,2]
[335333578,1724119840551,-150.0,0.00010626,2]
[335333580,1724119840560,-150.0,0.00010634,2]
[335333582,1724119840570,-150.0,0.00010638,2]
[335333584,1724119840580,-150.0,0.0001064,2]
[335333585,1724119840590,-150.0,0.00010641,2]
[335333588,1724119840599,-150.0,0.00010644,2]
[335333589,1724119840609,-150.0,0.00010646,2]
[335333591,1724119840618,-150.0,0.00010646,2]
[335333593,1724119840627,-150.0,0.00010648,2]
[335333595,1724119840636,-150.0,0.00010655,2]
[335333597,1724119840647,-150.0,0.00010663,2]
[335333599,1724119840656,-150.0,0.00010681,2]
[335333601,1724119840666,-150.0,0.00010682,2]
[335333603,1724119840675,-150.0,0.00010689,2]
[335333605,1724119840684,-150.0,0.00010691,2]
[335333607,1724119840694,-150.0,0.00010694,2]
[335333609,1724119840703,-150.0,0.00010694,2]
[335333611,1724119840712,-150.0,0.00010703,2]
[335333613,1724119840726,-150.0,0.00010708,2]
[335333615,1724119840735,-150.0,0.00010712,2]
[335333617,1724119840744,-150.0,0.00010717,2]
[335333619,1724119840754,-150.0,0.00010719,2]
[335333621,1724119840763,-150.0,0.00010721,2]
[335333623,1724119840773,-150.0,0.00010725,2]
[335333625,1724119840782,-150.0,0.00010732,2]
[335333627,1724119840791,-150.0,0.00010736,2]
[335333629,1724119840801,-150.0,0.00010743,2]
[335333631,1724119840811,-150.0,0.00010754,2]
[335333633,1724119840820,-150.0,0.00010755,2]
[335333635,1724119840830,-150.0,0.00010756,2]
[335333637,1724119840839,-150.0,0.00010757,2]
[335333638,1724119840849,-150.0,0.00010759,2]
[335333640,1724119840858,-137.95870166,0.00010765,2]
[335333848,1724119842899,-150.0,0.00010574,2]
[335333850,1724119842909,-150.0,0.00010576,2]
[335333852,1724119842918,-150.0,0.00010583,2]
[335333854,1724119842927,-150.0,0.00010584,2]
[335333856,1724119842936,-150.0,0.00010611,2]
[335333858,1724119842946,-150.0,0.00010611,2]
[335333859,1724119842960,-150.0,0.00010643,2]
[335333861,1724119842970,-150.0,0.00010643,2]
[335333863,1724119842980,-17.50675063,0.00010655,2]
[335333966,1724119843783,-132.49324937,0.00010655,2]
[335333968,1724119843792,-150.0,0.00010698,2]
[335333970,1724119843801,-150.0,0.00010698,2]
[335333972,1724119843810,-150.0,0.00010699,2]
[335333974,1724119843819,-150.0,0.00010715,2]
[335333976,1724119843829,-150.0,0.00010717,2]
[335333978,1724119843838,-150.0,0.00010725,2]
[335333979,1724119843847,-150.0,0.00010732,2]
[335333982,1724119843857,-284.54168665,0.00010741,2]
[335333983,1724119843866,-150.0,0.00010741,2]
[335333985,1724119843875,-150.0,0.00010744,2]
[335333987,1724119843885,-150.0,0.00010745,2]
[335333989,1724119843894,-150.0,0.00010746,2]
[335333991,1724119843905,-150.0,0.00010758,2]
[335333993,1724119843914,-12.04129834,0.00010765,2]
[335333995,1724119843923,-150.0,0.00010772,2]
[335333997,1724119843933,-150.0,0.00010779,2]
[335333999,1724119843942,-150.0,0.00010781,2]
[335334001,1724119843956,-150.0,0.00010782,2]
[335334003,1724119843965,-150.0,0.00010783,2]
[335334004,1724119843975,-150.0,0.00010784,2]
[335334006,1724119843985,-150.0,0.00010784,2]
[335334008,1724119843995,-150.0,0.0001079,2]
[335334010,1724119844004,-150.0,0.00010795,2]
[335334012,1724119844013,-150.0,0.00010799,2]
[335334014,1724119844022,-155.4005183,0.00010799,2]
[335334015,1724119844033,-150.0,0.00010802,2]
[335334017,1724119844042,-150.0,0.00010802,2]
[335334019,1724119844052,-150.0,0.00010803,2]
[335334021,1724119844061,-150.0,0.00010803,2]
[335334023,1724119844070,-150.0,0.00010805,2]
[335334025,1724119844080,-150.0,0.00010811,2]
[335334027,1724119844089,-150.0,0.00010814,2]
[335334029,1724119844098,-37.56774409,0.00010815,2]
[335334031,1724119844107,-150.0,0.00010816,2]
[335334032,1724119844116,-150.0,0.00010817,2]
[335334034,1724119844125,-150.0,0.00010823,2]
[335334036,1724119844135,-150.0,0.00010824,2]
[335334038,1724119844144,-150.0,0.00010825,2]
[335334040,1724119844154,-88.12444086,0.00010832,2]
[335334042,1724119844163,-150.0,0.00010832,2]
[335334044,1724119844172,-150.0,0.00010832,2]
[335334046,1724119844181,-484026.1142186,0.00010833,2]
[335334048,1724119844191,-500.0,0.00010833,2]
[335334050,1724119844200,-1013.0,0.00010833,2]
[335334051,1724119844210,-694.12,0.00010833,2]
[335334053,1724119844219,-500.0,0.00010833,2]
[335334055,1724119844229,-682.81,0.00010833,2]
[335334057,1724119844239,-682.81,0.00010833,2]
[335334059,1724119844248,-1844.4,0.00010833,2]
[335334061,1724119844258,-1844.4,0.00010833,2]
[335334063,1724119844267,-4668.25,0.00010833,2]
[335334065,1724119844277,-500.0,0.00010833,2]
[335334067,1724119844286,-500.0,0.00010833,2]
[335334069,1724119844295,-500.0,0.00010833,2]
[335334071,1724119844305,-500.0,0.00010833,2]
[335334073,1724119844315,-500.0,0.00010833,2]
[335334074,1724119844324,-500.0,0.00010833,2]
[335334076,1724119844333,-500.0,0.00010833,2]
[335334078,1724119844343,-729.0,0.00010833,2]
[335334080,1724119844352,-729.0,0.00010833,2]
[335334082,1724119844361,-2137.84,0.00010833,2]
[335334084,1724119844371,-2137.84,0.00010833,2]
[335334086,1724119844381,-573.81,0.00010833,2]
[335334088,1724119844390,-573.81,0.00010833,2]
[335334090,1724119844400,-500.0,0.00010833,2]
[335334091,1724119844409,-500.0,0.00010833,2]
[335334093,1724119844418,-500.0,0.00010833,2]
[335334095,1724119844428,-500.0,0.00010833,2]
[335334097,1724119844438,-500.0,0.00010833,2]
[335334099,1724119844448,-500.0,0.00010833,2]
[335334101,1724119844458,-687.97,0.00010833,2]
[335334103,1724119844467,-500.0,0.00010833,2]
[335334105,1724119844478,-687.97,0.00010833,2]
[335334107,1724119844488,-621.96288917,0.00010833,2]
[335334109,1724119844498,-500.0,0.00010833,2]
[335334111,1724119844508,-500.0,0.00010833,2]
[335334113,1724119844517,-500.0,0.00010833,2]
[335334115,1724119844527,-500.0,0.00010833,2]
[335334117,1724119844537,-500.0,0.00010833,2]
[335334119,1724119844546,-760.44,0.00010833,2]
[335334121,1724119844556,-760.44,0.00010833,2]
[335334122,1724119844566,-969.41,0.00010833,2]
[335334124,1724119844575,-969.41,0.00010833,2]
[335334126,1724119844585,-928.28,0.00010833,2]
[335334128,1724119844594,-928.28,0.00010833,2]
[335334130,1724119844603,-987.94,0.00010833,2]
[335334132,1724119844612,-987.94,0.00010833,2]
[335334134,1724119844622,-500.0,0.00010833,2]
[335334135,1724119844630,-500.0,0.00010833,2]
[335334137,1724119844641,-255.4221828,0.00010833,2]
[335334139,1724119844650,-1948.72,0.00010833,2]
[335334141,1724119844660,-1948.72,0.00010833,2]
[335334143,1724119844669,-500.0,0.00010833,2]
[335334145,1724119844679,-363.80941973,0.00010833,2]
[335334147,1724119844689,-4469.31,0.00010833,2]
[335334149,1724119844698,-1127.05,0.00010833,2]
[335334151,1724119844707,-1127.5,0.00010833,2]
[335334153,1724119844717,-1127.5,0.00010833,2]
[335334155,1724119844727,-500.0,0.00010833,2]
[335334157,1724119844735,-2188.76,0.00010833,2]
[335334159,1724119844745,-2188.76,0.00010833,2]
[335334161,1724119844755,-4152.77,0.00010833,2]
[335334163,1724119844764,-4152.77,0.00010833,2]
[335334164,1724119844773,-500.0,0.00010833,2]
[335334166,1724119844783,-500.0,0.00010833,2]
[335334168,1724119844792,-500.0,0.00010833,2]
[335334171,1724119844802,-500.0,0.00010833,2]
[335334172,1724119844812,-500.0,0.00010833,2]
[335334175,1724119844821,-500.0,0.00010833,2]
[335334176,1724119844831,-2689.37,0.00010833,2]
[335334178,1724119844840,-2689.37,0.00010833,2]
[335334180,1724119844850,-500.0,0.00010833,2]
[335334182,1724119844859,-500.0,0.00010833,2]
[335334184,1724119844868,-500.0,0.00010833,2]
[335334186,1724119844878,-500.0,0.00010833,2]
[335334188,1724119844887,-1026.71,0.00010833,2]
[335334189,1724119844896,-1026.71,0.00010833,2]
[335334191,1724119844905,-500.0,0.00010833,2]
[335334193,1724119844914,-500.0,0.00010833,2]
[335334195,1724119844923,-3057.85,0.00010833,2]
[335334197,1724119844933,-3057.85,0.00010833,2]
[335334199,1724119844942,-500.0,0.00010833,2]
[335334201,1724119844954,-500.0,0.00010833,2]
[335334203,1724119844963,-500.0,0.00010833,2]
[335334205,1724119844972,-500.0,0.00010833,2]
[335334207,1724119844991,-819.25,0.00010833,2]
[335334209,1724119845001,-819.25,0.00010833,2]
[335334211,1724119845010,-923.85,0.00010833,2]
[335334212,1724119845020,-923.85,0.00010833,2]
[335334214,1724119845033,-2014.48,0.00010833,2]
[335334216,1724119845043,-2014.48,0.00010833,2]
[335334218,1724119845052,-150.0,0.00010833,2]
[335334220,1724119845062,-1052.51343567,0.00010834,2]
[335334222,1724119845072,-413.32982156,0.00010834,2]
[335334224,1724119845081,-311.3510429,0.00010834,2]
[335334226,1724119845091,-1217.97480628,0.00010834,2]
[335334228,1724119845100,-500.0,0.00010834,2]
[335334230,1724119845109,-500.0,0.00010834,2]
[335334232,1724119845119,-500.0,0.00010834,2]
[335334234,1724119845128,-234987.56961,0.00010834,2]
[335334236,1724119845139,-500.0,0.00010834,2]
[335334238,1724119845148,-500.0,0.00010834,2]
[335334240,1724119845157,-500.0,0.00010834,2]
[335334242,1724119845167,-151.0,0.00010834,2]
[335334244,1724119845176,-151.0,0.00010834,2]
[335334246,1724119845185,-151.0,0.00010834,2]
[335334248,1724119845194,-151.0,0.00010834,2]
[335334250,1724119845203,-151.0,0.00010834,2]
[335334251,1724119845212,-151.0,0.00010834,2]
[335334252,1724119845222,-151.0,0.00010834,2]
[335334253,1724119845232,-151.0,0.00010834,2]
[335334254,1724119845241,-500.0,0.00010834,2]
[335334255,1724119845251,-500.0,0.00010834,2]
[335334256,1724119845260,-500.0,0.00010834,2]
[335334257,1724119845269,-500.0,0.00010834,2]
[335334258,1724119845278,-471.64837847,0.00010834,2]
[335334259,1724119845288,-734.1,0.00010834,2]
[335334260,1724119845297,-734.1,0.00010834,2]
[335334261,1724119845307,-734.1,0.00010834,2]
[335334262,1724119845316,-500.0,0.00010834,2]
[335334263,1724119845325,-500.0,0.00010834,2]
[335334264,1724119845335,-500.0,0.00010834,2]
[335334265,1724119845345,-500.0,0.00010834,2]
[335334267,1724119845355,-500.0,0.00010834,2]
[335334269,1724119845365,-500.0,0.00010834,2]
[335334271,1724119845374,-500.0,0.00010834,2]
[335334273,1724119845384,-500.0,0.00010834,2]
[335334275,1724119845393,-500.0,0.00010834,2]
[335334277,1724119845403,-500.0,0.00010834,2]
[335334279,1724119845412,-500.0,0.00010834,2]
[335334281,1724119845422,-500.0,0.00010834,2]
[335334283,1724119845431,-500.0,0.00010834,2]
[335334285,1724119845441,-500.0,0.00010834,2]
[335334287,1724119845450,-500.0,0.00010834,2]
[335334288,1724119845460,-500.0,0.00010834,2]
[335334290,1724119845469,-500.0,0.00010834,2]
[335334292,1724119845481,-500.0,0.00010834,2]
[335334294,1724119845490,-1013.0,0.00010834,2]
[335334296,1724119845500,-1013.0,0.00010834,2]
[335334298,1724119845509,-1013.0,0.00010834,2]
[335334300,1724119845518,-694.12,0.00010834,2]
[335334302,1724119845527,-694.12,0.00010834,2]
[335334304,1724119845537,-694.12,0.00010834,2]
[335334306,1724119845547,-500.0,0.00010834,2]
[335334308,1724119845557,-500.0,0.00010834,2]
[335334310,1724119845566,-500.0,0.00010834,2]
[335334312,1724119845576,-682.81,0.00010834,2]
[335334314,1724119845586,-682.81,0.00010834,2]
[335334316,1724119845595,-682.81,0.00010834,2]
[335334318,1724119845604,-1844.4,0.00010834,2]
[335334320,1724119845613,-1844.4,0.00010834,2]
[335334322,1724119845626,-1844.4,0.00010834,2]
[335334324,1724119845635,-4668.25,0.00010834,2]
[335334327,1724119845645,-4668.25,0.00010834,2]
[335334330,1724119845655,-4668.25,0.00010834,2]
[335334332,1724119845664,-151.0,0.00010834,2]
[335334335,1724119845673,-500.0,0.00010834,2]
[335334338,1724119845683,-500.0,0.00010834,2]
[335334341,1724119845692,-500.0,0.00010834,2]
[335334344,1724119845702,-278.37440505,0.00010834,2]
[335334347,1724119845711,-500.0,0.00010834,2]
[335334349,1724119845720,-500.0,0.00010834,2]
[335334351,1724119845730,-500.0,0.00010834,2]
[335334353,1724119845739,-500.0,0.00010834,2]
[335334355,1724119845749,-500.0,0.00010834,2]
[335334357,1724119845758,-500.0,0.00010834,2]
[335334359,1724119845768,-729.0,0.00010834,2]
[335334361,1724119845777,-729.0,0.00010834,2]
[335334363,1724119845786,-729.0,0.00010834,2]
[335334365,1724119845795,-519.133356,0.00010834,2]
[335334367,1724119845805,-519.133356,0.00010834,2]
[335334369,1724119845814,-151.0,0.00010834,2]
[335334371,1724119845823,-2137.84,0.00010834,2]
[335334372,1724119845832,-2137.84,0.00010834,2]
[335334375,1724119845842,-2137.84,0.00010834,2]
[335334377,1724119845852,-573.81,0.00010834,2]
[335334378,1724119845861,-573.81,0.00010834,2]
[335334380,1724119845871,-573.81,0.00010834,2]
[335334382,1724119845882,-500.0,0.00010834,2]
[335334385,1724119845892,-500.0,0.00010834,2]
[335334387,1724119845901,-500.0,0.00010834,2]
[335334389,1724119845911,-501.95665228,0.00010834,2]
[335334391,1724119845920,-151.0,0.00010834,2]
[335334393,1724119845929,-500.0,0.00010834,2]
[335334394,1724119845938,-687.97,0.00010834,2]
[335334396,1724119845949,-687.97,0.00010834,2]
[335334398,1724119845962,-500.0,0.00010834,2]
[335334400,1724119845971,-500.0,0.00010834,2]
[335334402,1724119845982,-687.97,0.00010834,2]
[335334404,1724119845991,-500.0,0.00010834,2]
[335334406,1724119846001,-500.0,0.00010834,2]
[335334408,1724119846010,-545.71488819,0.00010834,2]
[335334410,1724119846019,-500.0,0.00010834,2]
[335334412,1724119846031,-500.0,0.00010834,2]
[335334414,1724119846040,-500.0,0.00010834,2]
[335334416,1724119846049,-500.0,0.00010834,2]
[335334418,1724119846058,-500.0,0.00010834,2]
[335334419,1724119846067,-500.0,0.00010834,2]
[335334421,1724119846076,-760.44,0.00010834,2]
[335334423,1724119846085,-760.44,0.00010834,2]
[335334425,1724119846094,-969.41,0.00010834,2]
[335334427,1724119846103,-969.41,0.00010834,2]
[335334429,1724119846112,-969.41,0.00010834,2]
[335334431,1724119846121,-760.44,0.00010834,2]
[335334433,1724119846130,-240.950047,0.00010834,2]
[335334435,1724119846139,-240.950047,0.00010834,2]
[335334437,1724119846148,-928.28,0.00010834,2]
[335334439,1724119846157,-928.28,0.00010834,2]
[335334441,1724119846166,-928.28,0.00010834,2]
[335334443,1724119846176,-987.94,0.00010834,2]
[335334444,1724119846185,-987.94,0.00010834,2]
[335334446,1724119846194,-987.94,0.00010834,2]
[335334448,1724119846202,-500.0,0.00010834,2]
[335334450,1724119846211,-500.0,0.00010834,2]
[335334452,1724119846220,-173.49295372,0.00010834,2]
[335334454,1724119846229,-151.21536,0.00010834,2]
[335334456,1724119846238,-151.384805,0.00010834,2]
[335334458,1724119846247,-1948.72,0.00010834,2]
[335334460,1724119846255,-1948.72,0.00010834,2]
[335334462,1724119846265,-1948.72,0.00010834,2]
[335334464,1724119846274,-500.0,0.00010834,2]
[335334466,1724119846282,-500.0,0.00010834,2]
[335334468,1724119846291,-500.0,0.00010834,2]
[335334470,1724119846300,-1127.05,0.00010834,2]
[335334472,1724119846309,-4469.31,0.00010834,2]
[335334474,1724119846318,-1127.05,0.00010834,2]
[335334476,1724119846327,-4469.31,0.00010834,2]
[335334478,1724119846336,-1127.05,0.00010834,2]
[335334481,1724119846346,-4469.31,0.00010834,2]
[335334485,1724119846355,-318.271325,0.00010834,2]
[335334488,1724119846365,-1127.5,0.00010834,2]
[335334491,1724119846374,-1127.5,0.00010834,2]
[335334494,1724119846384,-1127.5,0.00010834,2]
[335334497,1724119846394,-237.957942,0.00010834,2]
[335334500,1724119846403,-500.0,0.00010834,2]
[335334503,1724119846412,-318.271325,0.00010834,2]
[335334506,1724119846422,-500.0,0.00010834,2]
[335334508,1724119846431,-500.0,0.00010834,2]
[335334511,1724119846440,-237.957942,0.00010834,2]
[335334514,1724119846449,-151.0,0.00010834,2]
[335334517,1724119846459,-2188.76,0.00010834,2]
[335334519,1724119846468,-2188.76,0.00010834,2]
[335334520,1724119846477,-2188.76,0.00010834,2]
[335334522,1724119846486,-151.0,0.00010834,2]
[335334524,1724119846495,-4152.77,0.00010834,2]
[335334526,1724119846504,-4152.77,0.00010834,2]
[335334528,1724119846513,-4152.77,0.00010834,2]
[335334530,1724119846522,-500.0,0.00010834,2]
[335334531,1724119846531,-500.0,0.00010834,2]
[335334533,1724119846540,-500.0,0.00010834,2]
[335334535,1724119846550,-500.0,0.00010834,2]
[335334537,1724119846559,-500.0,0.00010834,2]
[335334539,1724119846568,-500.0,0.00010834,2]
[335334541,1724119846577,-500.0,0.00010834,2]
[335334543,1724119846586,-500.0,0.00010834,2]
[335334545,1724119846595,-500.0,0.00010834,2]
[335334546,1724119846604,-151.0,0.00010834,2]
[335334548,1724119846614,-2689.37,0.00010834,2]
[335334550,1724119846623,-2689.37,0.00010834,2]
[335334552,1724119846632,-2689.37,0.00010834,2]
[335334554,1724119846641,-151.0,0.00010834,2]
[335334556,1724119846650,-500.0,0.00010834,2]
[335334557,1724119846659,-500.0,0.00010834,2]
[335334559,1724119846668,-435.45115484,0.00010834,2]
[335334561,1724119846677,-500.0,0.00010834,2]
[335334563,1724119846686,-1026.71,0.00010834,2]
[335334565,1724119846695,-500.0,0.00010834,2]
[335334567,1724119846704,-1026.71,0.00010834,2]
[335334569,1724119846713,-500.0,0.00010834,2]
[335334571,1724119846723,-1026.71,0.00010834,2]
[335334573,1724119846734,-500.0,0.00010834,2]
[335334575,1724119846743,-500.0,0.00010834,2]
[335334576,1724119846752,-500.0,0.00010834,2]
[335334578,1724119846760,-151.0,0.00010834,2]
[335334580,1724119846770,-3057.85,0.00010834,2]
[335334582,1724119846779,-3057.85,0.00010834,2]
[335334583,1724119846788,-3057.85,0.00010834,2]
[335334585,1724119846797,-500.0,0.00010834,2]
[335334587,1724119846806,-500.0,0.00010834,2]
[335334589,1724119846815,-500.0,0.00010834,2]
[335334591,1724119846824,-500.0,0.00010834,2]
[335334593,1724119846833,-500.0,0.00010834,2]
[335334594,1724119846842,-500.0,0.00010834,2]
[335334595,1724119846851,-151.0,0.00010834,2]
[335334596,1724119846860,-819.25,0.00010834,2]
[335334597,1724119846870,-151.0,0.00010834,2]
[335334598,1724119846879,-819.25,0.00010834,2]
[335334599,1724119846889,-819.25,0.00010834,2]
[335334600,1724119846899,-151.0,0.00010834,2]
[335334601,1724119846907,-923.85,0.00010834,2]
[335334602,1724119846917,-923.85,0.00010834,2]
[335334603,1724119846926,-923.85,0.00010834,2]
[335334604,1724119846935,-2014.48,0.00010834,2]
[335334605,1724119846945,-2014.48,0.00010834,2]
[335334606,1724119846957,-2014.48,0.00010834,2]
[335334607,1724119846967,-151.0,0.00010834,2]
[335334608,1724119846977,-754.0,0.00010835,2]
[335334609,1724119846986,-180.33431,0.00010835,2]
[335334610,1724119846995,-500.0,0.00010835,2]
[335334611,1724119847004,-180.33431,0.00010835,2]
[335334612,1724119847013,-151.0,0.00010835,2]
[335334613,1724119847023,-500.0,0.00010835,2]
[335334614,1724119847035,-151.0,0.00010835,2]
[335334615,1724119847044,-151.0,0.00010835,2]
[335334616,1724119847053,-151.0,0.00010835,2]
[335334617,1724119847062,-151.0,0.00010835,2]
[335334618,1724119847071,-151.0,0.00010835,2]
[335334619,1724119847080,-151.0,0.00010835,2]
[335334620,1724119847089,-243.106748,0.00010835,2]
[335334621,1724119847098,-151.0,0.00010835,2]
[335334622,1724119847107,-151.0,0.00010835,2]
[335334623,1724119847117,-151.0,0.00010835,2]
[335334624,1724119847126,-151.0,0.00010835,2]
[335334625,1724119847135,-151.0,0.00010835,2]
[335334626,1724119847144,-151.0,0.00010835,2]
[335334627,1724119847153,-167.323093,0.00010835,2]
[335334628,1724119847162,-325450.15051512,0.00010835,2]
[335334629,1724119847179,-434995.01325708,0.00010835,2]
[335334630,1724119847188,-151.0,0.00010835,2]
[335334631,1724119847197,-151.0,0.00010835,2]
[335334632,1724119847206,-166.284938,0.00010835,2]
[335334633,1724119847215,-166.284938,0.00010835,2]
[335334634,1724119847223,-151.0,0.00010835,2]
[335334635,1724119847234,-151.0,0.00010835,2]
[335334636,1724119847243,-151.0,0.00010835,2]
[335334637,1724119847252,-248.416104,0.00010835,2]
[335334638,1724119847261,-151.0,0.00010835,2]
[335334639,1724119847270,-151.0,0.00010835,2]
[335334640,1724119847279,-151.0,0.00010835,2]
[335334641,1724119847289,-151.0,0.00010835,2]
[335334642,1724119847298,-519.133356,0.00010835,2]
[335334643,1724119847307,-519.133356,0.00010835,2]
[335334644,1724119847461,-151.01225,0.00010835,2]
[335334645,1724119847471,-151.0,0.00010835,2]
[335334646,1724119847481,-240.950047,0.00010835,2]
[335334647,1724119847491,-240.950047,0.00010835,2]
[335334648,1724119847502,-318.271325,0.00010835,2]
[335334649,1724119847512,-237.957942,0.00010835,2]
[335334650,1724119847521,-318.271325,0.00010835,2]
[335334651,1724119847530,-237.957942,0.00010835,2]
[335334652,1724119847540,-151.0,0.00010835,2]
[335334653,1724119847549,-151.0,0.00010835,2]
[335334654,1724119847559,-222.481348,0.00010835,2]
[335334655,1724119847568,-151.0,0.00010835,2]
[335334656,1724119847577,-151.0,0.00010835,2]
[335334657,1724119847587,-151.0,0.00010835,2]
[335334658,1724119847597,-151.0,0.00010835,2]
[335334659,1724119847607,-152.484875,0.00010835,2]
[335334660,1724119847616,-151.0,0.00010835,2]
[335334661,1724119847626,-253.26878847,0.00010837,2]
[335334662,1724119847636,-8662.49653527,0.00010837,2]
[335334663,1724119847648,-2337.945,0.00010838,2]
[335334664,1724119847659,-8662.49653527,0.00010839,2]
[335334665,1724119847668,-500.0,0.00010839,2]
[335334666,1724119847678,-8662.49653527,0.0001084,2]
[335334667,1724119847687,-196.2719102,0.0001084,2]
[335334668,1724119847696,-500.0,0.00010841,2]
[335334669,1724119847705,-196.2719102,0.00010842,2]
[335334670,1724119847715,-2337.945,0.00010843,2]